[Event "NJSK 2018 Jeugd B"]
[Site "Assen, Netherlands"]
[Date "2018.04.30"]
[Round "2.1"]
[White "De Boer, Eelke"]
[Black "Wedda, Dries"]
[Result "1-0"]
[TimeControl "40/90m+30m+30sec/move"]
[WhiteElo "2318"]
[BlackElo "2096"]

1. e4 {[%clk 01:30:57]} {[%emt 00:00:04]} c5 {[%clk 01:30:57]} {[%emt
00:00:03]} 2. Nf3 {[%clk 01:31:21]} {[%emt 00:00:05]} d6 {[%clk 01:27:56]}
{[%emt 00:03:32]} 3. d4 {[%clk 01:31:24]} {[%emt 00:00:27]} cxd4 {[%clk
01:28:24]} {[%emt 00:00:01]} 4. Nxd4 {[%clk 01:31:45]} {[%emt 00:00:09]} Nf6
{[%clk 01:28:53]} {[%emt 00:00:01]} 5. Nc3 {[%clk 01:32:06]} {[%emt 00:00:10]}
a6 {[%clk 01:29:22]} 6. Bg5 {[%clk 01:32:27]} {[%emt 00:00:08]} Nbd7 {[%clk
01:29:48]} {[%emt 00:00:05]} 7. Qe2 {[%clk 01:32:49]} {[%emt 00:00:07]} h6
{[%clk 01:29:57]} {[%emt 00:00:21]} 8. Bh4 {[%clk 01:33:13]} {[%emt 00:00:06]}
g6 {[%clk 01:30:23]} {[%emt 00:00:05]} 9. f4 {[%clk 01:33:35]} {[%emt
00:00:08]} e5 {[%clk 01:30:48]} {[%emt 00:00:05]} 10. fxe5 {[%clk 01:33:57]}
{[%emt 00:00:07]} dxe5 {[%clk 01:31:16]} {[%emt 00:00:02]} 11. O-O-O {[%clk
01:34:16]} {[%emt 00:00:11]} Qc7 {[%clk 01:31:40]} {[%emt 00:00:07]} 12. Nb3
{[%clk 01:34:40]} {[%emt 00:00:05]} b5 {[%clk 01:32:06]} {[%emt 00:00:04]} 13.
Qf3 {[%clk 01:35:04]} {[%emt 00:00:06]} Bg7 {[%clk 01:32:28]} {[%emt 00:00:09]}
14. g4 {[%clk 01:35:27]} {[%emt 00:00:07]} Bb7 {[%clk 01:27:28]} {[%emt
00:05:30]} 15. Bd3 {[%clk 01:35:48]} {[%emt 00:00:08]} O-O {[%clk 01:26:20]}
{[%emt 00:01:38]} 16. a3 {[%clk 01:36:05]} {[%emt 00:00:14]} Rab8 {[%clk
01:21:15]} {[%emt 00:05:35]} 17. g5 {[%clk 01:32:33]} {[%emt 00:04:01]} Nh5
{[%clk 01:03:17]} {[%emt 00:18:29]} 18. Kb1 {[%clk 01:22:56]} {[%emt 00:10:07]}
hxg5 {[%clk 00:56:06]} {[%emt 00:07:40]} 19. Bxg5 {[%clk 01:23:18]} {[%emt
00:00:08]} Bc6 {[%clk 00:56:27]} {[%emt 00:00:10]} 20. Be2 {[%clk 01:19:09]}
{[%emt 00:04:38]} b4 {[%clk 00:50:45]} {[%emt 00:06:13]} 21. axb4 {[%clk
01:18:23]} {[%emt 00:01:15]} Ndf6 {[%clk 00:50:31]} {[%emt 00:00:44]} 22. Nc5
{[%clk 01:02:29]} {[%emt 00:16:24]} Rxb4 {[%clk 00:47:05]} {[%emt 00:03:56]} 23.
Nxa6 {[%clk 01:02:27]} {[%emt 00:00:32]} Qb6 {[%clk 00:46:39]} {[%emt
00:00:56]} 24. Nxb4 {[%clk 00:56:17]} {[%emt 00:06:41]} Qxb4 {[%clk 00:47:07]}
{[%emt 00:00:02]} 25. Nd5 {[%clk 00:54:14]} {[%emt 00:02:31]} Bxd5 {[%clk
00:40:11]} {[%emt 00:07:27]} 26. exd5 {[%clk 00:54:36]} {[%emt 00:00:09]} Ne4
{[%clk 00:40:40]} {[%emt 00:00:01]} 27. Be7 {[%clk 00:49:39]} {[%emt 00:05:26]}
Qxe7 {[%clk 00:41:08]} {[%emt 00:00:03]} 28. Qxe4 {[%clk 00:49:59]} {[%emt
00:00:09]} Nf4 {[%clk 00:41:35]} {[%emt 00:00:04]} 29. d6 {[%clk 00:41:32]}
{[%emt 00:08:57]} Qd7 {[%clk 00:42:04]} {[%emt 00:00:01]} 30. Bc4 {[%clk
00:41:08]} {[%emt 00:00:53]} Rb8 {[%clk 00:41:28]} {[%emt 00:01:06]} 31. Bb3
{[%clk 00:40:04]} {[%emt 00:01:34]} Ne6 {[%clk 00:41:50]} {[%emt 00:00:08]} 32.
Bxe6 {[%clk 00:38:30]} {[%emt 00:02:04]} Qxe6 {[%clk 00:41:08]} {[%emt
00:01:13]} 33. Qd5 {[%clk 00:38:21]} {[%emt 00:00:39]} Qd7 {[%clk 00:40:58]}
{[%emt 00:00:39]} 34. Rhg1 {[%clk 00:28:53]} {[%emt 00:09:57]} e4 {[%clk
00:35:16]} {[%emt 00:06:12]} 35. Rxg6 {[%clk 00:17:14]} {[%emt 00:12:09]} Rxb2+
{[%clk 00:34:53]} {[%emt 00:00:54]} 36. Kc1 {[%clk 00:17:37]} {[%emt 00:00:08]}
Rb5 {[%clk 00:33:43]} {[%emt 00:01:41]} 37. Rxg7+ {[%clk 00:17:33]} {[%emt
00:00:32]} Kxg7 {[%clk 00:34:11]} {[%emt 00:00:02]} 38. Rg1+ {[%clk 00:17:52]}
{[%emt 00:00:11]} Kh6 {[%clk 00:33:26]} {[%emt 00:01:15]} 39. Qd4 {[%clk
00:17:57]} {[%emt 00:00:25]} 1-0

[Event "NJSK 2018 Jeugd B"]
[Site "Assen, Netherlands"]
[Date "2018.04.30"]
[Round "2.2"]
[White "Kouwenhoven, Derk"]
[Black "Tang, Charlie"]
[Result "0-1"]
[TimeControl "40/90m+30m+30sec/move"]
[WhiteElo "2091"]
[BlackElo "2127"]

1. e4 {[%clk 01:30:56]} {[%emt 00:00:03]} c5 {[%clk 01:30:46]} {[%emt
00:00:14]} 2. Nf3 {[%clk 01:30:59]} {[%emt 00:00:28]} d6 {[%clk 01:31:07]}
{[%emt 00:00:09]} 3. d4 {[%clk 01:31:13]} {[%emt 00:00:15]} cxd4 {[%clk
01:31:20]} {[%emt 00:00:18]} 4. Nxd4 {[%clk 01:31:36]} {[%emt 00:00:07]} Nf6
{[%clk 01:31:37]} {[%emt 00:00:12]} 5. Nc3 {[%clk 01:32:00]} {[%emt 00:00:06]}
g6 {[%clk 01:31:52]} {[%emt 00:00:16]} 6. Be3 {[%clk 01:31:24]} {[%emt
00:01:06]} Bg7 {[%clk 01:32:04]} {[%emt 00:00:18]} 7. f3 {[%clk 01:31:34]}
{[%emt 00:00:19]} O-O {[%clk 01:32:23]} {[%emt 00:00:11]} 8. Bc4 {[%clk
01:30:23]} {[%emt 00:01:42]} Nc6 {[%clk 01:32:13]} {[%emt 00:00:40]} 9. Bb3
{[%clk 01:30:43]} {[%emt 00:00:09]} Bd7 {[%clk 01:31:57]} {[%emt 00:00:46]} 10.
Qd2 {[%clk 01:30:35]} {[%emt 00:00:38]} Rc8 {[%clk 01:31:51]} {[%emt 00:00:37]}
11. h4 {[%clk 01:30:32]} {[%emt 00:00:33]} h5 {[%clk 01:30:42]} {[%emt
00:01:39]} 12. O-O-O {[%clk 01:24:57]} {[%emt 00:06:05]} Ne5 {[%clk 01:29:15]}
{[%emt 00:01:57]} 13. Qe2 {[%clk 01:20:53]} {[%emt 00:04:34]} Qa5 {[%clk
01:22:09]} {[%emt 00:07:36]} 14. Nd5 {[%clk 01:17:13]} {[%emt 00:04:10]} Nxd5
{[%clk 01:18:12]} {[%emt 00:04:27]} 15. exd5 {[%clk 01:17:14]} {[%emt
00:00:29]} Ba4 {[%clk 01:09:49]} {[%emt 00:08:52]} 16. Qd2 {[%clk 01:09:11]}
{[%emt 00:08:33]} Qa6 {[%clk 00:44:33]} {[%emt 00:25:47]} 17. Kb1 {[%clk
01:06:41]} {[%emt 00:03:00]} Bxb3 {[%clk 00:44:29]} {[%emt 00:00:34]} 18. axb3
{[%clk 01:06:04]} {[%emt 00:01:07]} Rc5 {[%clk 00:43:46]} {[%emt 00:01:13]} 19.
c4 {[%clk 00:46:09]} {[%emt 00:20:25]} Rfc8 {[%clk 00:35:46]} {[%emt 00:08:29]}
20. Nb5 {[%clk 00:42:49]} {[%emt 00:03:50]} Rxc4 {[%clk 00:35:49]} {[%emt
00:00:27]} 21. bxc4 {[%clk 00:43:00]} {[%emt 00:00:20]} Nxc4 {[%clk 00:36:14]}
{[%emt 00:00:05]} 22. Qb4 {[%clk 00:28:20]} {[%emt 00:15:10]} Nxe3 {[%clk
00:36:14]} {[%emt 00:00:30]} 23. Rc1 {[%clk 00:25:53]} {[%emt 00:02:57]} Rxc1+
{[%clk 00:36:05]} {[%emt 00:00:39]} 24. Rxc1 {[%clk 00:26:18]} {[%emt
00:00:05]} Qb6 {[%clk 00:36:04]} {[%emt 00:00:31]} 25. Rc8+ {[%clk 00:18:11]}
{[%emt 00:08:37]} Kh7 {[%clk 00:36:16]} {[%emt 00:00:17]} 26. Qa4 {[%clk
00:17:59]} {[%emt 00:00:42]} a6 {[%clk 00:33:59]} {[%emt 00:02:48]} 27. Nc3
{[%clk 00:18:18]} {[%emt 00:00:10]} Nxd5 {[%clk 00:34:20]} {[%emt 00:00:10]} 28.
Ka2 {[%clk 00:17:08]} {[%emt 00:01:40]} Qf2 {[%clk 00:24:45]} {[%emt 00:10:04]}
29. Kb3 {[%clk 00:16:28]} {[%emt 00:01:11]} Nb6 {[%clk 00:24:46]} {[%emt
00:00:29]} 30. Qe8 {[%clk 00:16:31]} {[%emt 00:00:27]} Nxc8 {[%clk 00:24:59]}
{[%emt 00:00:16]} 31. Qxc8 {[%clk 00:16:56]} {[%emt 00:00:05]} Qb6+ {[%clk
00:23:07]} {[%emt 00:02:22]} 32. Ka2 {[%clk 00:16:54]} {[%emt 00:00:32]} Qa5+
{[%clk 00:18:33]} {[%emt 00:05:05]} 33. Kb3 {[%clk 00:16:48]} {[%emt 00:00:35]}
Bxc3 {[%clk 00:18:33]} {[%emt 00:00:30]} 34. bxc3 {[%clk 00:17:08]} {[%emt
00:00:10]} Qd5+ {[%clk 00:18:32]} {[%emt 00:00:31]} 35. c4 {[%clk 00:16:46]}
{[%emt 00:00:52]} Qd3+ {[%clk 00:18:55]} {[%emt 00:00:07]} 36. Kb4 {[%clk
00:16:34]} {[%emt 00:00:42]} Kg7 {[%clk 00:18:36]} {[%emt 00:00:49]} 37. Qc7
{[%clk 00:15:30]} {[%emt 00:01:34]} e6 {[%clk 00:17:20]} {[%emt 00:01:46]} 38.
Qe7 {[%clk 00:14:48]} {[%emt 00:01:12]} b5 {[%clk 00:17:35]} {[%emt 00:00:15]}
39. c5 {[%clk 00:14:27]} {[%emt 00:00:50]} dxc5+ {[%clk 00:17:39]} {[%emt
00:00:27]} 40. Qxc5 {[%clk 00:14:40]} {[%emt 00:00:17]} Qc4+ {[%clk 00:17:08]}
{[%emt 00:01:01]} 0-1

[Event "NJSK 2018 Jeugd B"]
[Site "Assen, Netherlands"]
[Date "2018.04.30"]
[Round "2.3"]
[White "Hilwerda, Jonas"]
[Black "Grutter, Tim"]
[Result "1/2-1/2"]
[TimeControl "40/90m+30m+30sec/move"]
[WhiteElo "2108"]
[BlackElo "1974"]

1. e4 {[%clk 01:30:43]} {[%emt 00:00:16]} c5 {[%clk 01:30:52]} {[%emt
00:00:08]} 2. Nf3 {[%clk 01:30:53]} {[%emt 00:00:20]} e6 {[%clk 01:31:14]}
{[%emt 00:00:08]} 3. d3 {[%clk 01:31:00]} {[%emt 00:00:23]} d5 {[%clk
01:30:48]} {[%emt 00:00:56]} 4. Qe2 {[%clk 01:30:42]} {[%emt 00:00:48]} Nf6
{[%clk 01:27:29]} {[%emt 00:03:49]} 5. e5 {[%clk 01:28:23]} {[%emt 00:02:49]}
Nfd7 {[%clk 01:27:36]} {[%emt 00:00:24]} 6. g3 {[%clk 01:27:27]} {[%emt
00:01:25]} Nc6 {[%clk 01:26:16]} {[%emt 00:01:52]} 7. Bg2 {[%clk 01:26:08]}
{[%emt 00:01:47]} Be7 {[%clk 01:25:06]} {[%emt 00:01:39]} 8. O-O {[%clk
01:26:23]} {[%emt 00:00:16]} O-O {[%clk 01:24:22]} {[%emt 00:01:15]} 9. c4
{[%clk 01:26:01]} {[%emt 00:00:51]} d4 {[%clk 01:12:17]} {[%emt 00:12:36]} 10.
h4 {[%clk 01:25:49]} {[%emt 00:00:42]} Rb8 {[%clk 01:06:09]} {[%emt 00:06:38]}
11. Bf4 {[%clk 01:22:43]} {[%emt 00:03:35]} a6 {[%emt 00:13:03]} 12. Nbd2
{[%clk 01:17:40]} b5 {[%clk 00:55:54]} {[%emt 00:03:46]} 13. g4 {[%clk
01:01:41]} {[%emt 00:16:27]} bxc4 {[%clk 00:52:17]} {[%emt 00:04:08]} 14. Nxc4
{[%clk 00:56:24]} {[%emt 00:05:47]} Nb6 {[%clk 00:45:33]} {[%emt 00:07:14]} 15.
b3 {[%clk 00:50:01]} {[%emt 00:06:53]} Nd5 {[%clk 00:41:37]} {[%emt 00:04:26]}
16. Bg3 {[%clk 00:49:38]} {[%emt 00:00:54]} Nc3 {[%clk 00:39:59]} {[%emt
00:02:07]} 17. Qd2 {[%clk 00:47:35]} {[%emt 00:02:32]} Nb4 {[%clk 00:37:45]}
{[%emt 00:02:45]} 18. g5 {[%clk 00:42:25]} {[%emt 00:05:40]} a5 {[%clk
00:29:29]} {[%emt 00:08:47]} 19. Nh2 {[%clk 00:38:28]} {[%emt 00:04:26]} a4
{[%clk 00:25:43]} {[%emt 00:04:17]} 20. bxa4 {[%clk 00:35:02]} {[%emt
00:03:55]} Ba6 {[%clk 00:22:59]} {[%emt 00:03:14]} 21. a3 {[%clk 00:25:30]}
{[%emt 00:10:02]} Nbd5 {[%clk 00:23:16]} {[%emt 00:00:13]} 22. Ng4 {[%clk
00:23:33]} {[%emt 00:02:27]} Bxc4 {[%clk 00:21:18]} {[%emt 00:02:29]} 23. dxc4
{[%clk 00:23:58]} {[%emt 00:00:05]} Nb6 {[%clk 00:21:44]} {[%emt 00:00:03]} 24.
Nf6+ {[%clk 00:15:51]} {[%emt 00:08:36]} gxf6 {[%clk 00:16:58]} {[%emt
00:05:16]} 25. gxf6 {[%clk 00:16:09]} {[%emt 00:00:13]} Bxf6 {[%clk 00:17:10]}
{[%emt 00:00:18]} 26. exf6 {[%clk 00:16:01]} {[%emt 00:00:38]} Qxf6 {[%clk
00:17:32]} {[%emt 00:00:08]} 27. Bxb8 {[%clk 00:13:46]} {[%emt 00:02:45]} Rxb8
{[%clk 00:17:58]} {[%emt 00:00:05]} 28. Qd3 {[%clk 00:13:21]} {[%emt 00:00:54]}
Qg6 {[%clk 00:17:01]} {[%emt 00:01:26]} 29. Qxg6+ {[%clk 00:11:15]} {[%emt
00:02:36]} hxg6 {[%clk 00:17:26]} {[%emt 00:00:06]} 30. Rfb1 {[%clk 00:11:33]}
{[%emt 00:00:11]} Ncxa4 {[%clk 00:14:51]} {[%emt 00:03:06]} 31. Bc6 {[%clk
00:10:02]} {[%emt 00:02:01]} Rd8 {[%clk 00:13:31]} {[%emt 00:01:50]} 32. Rb3
{[%clk 00:08:44]} {[%emt 00:01:47]} Rd6 {[%clk 00:13:08]} {[%emt 00:00:54]} 33.
Bxa4 {[%clk 00:08:43]} {[%emt 00:00:31]} Nxa4 {[%clk 00:13:34]} {[%emt
00:00:04]} 34. Rd1 {[%clk 00:05:46]} {[%emt 00:03:27]} e5 {[%clk 00:13:20]}
{[%emt 00:00:45]} 35. f3 {[%clk 00:03:09]} {[%emt 00:03:06]} f5 {[%clk
00:12:53]} {[%emt 00:00:57]} 36. Kf2 {[%clk 00:01:36]} {[%emt 00:02:02]} Kf7
{[%clk 00:12:28]} {[%emt 00:00:55]} 37. Ke2 {[%clk 00:01:19]} {[%emt 00:00:47]}
e4 {[%clk 00:12:12]} {[%emt 00:00:46]} 38. fxe4 {[%clk 00:00:58]} {[%emt
00:00:52]} fxe4 {[%clk 00:12:37]} {[%emt 00:00:06]} 39. Re3 {[%clk 00:00:36]}
{[%emt 00:00:52]} Rb6 {[%clk 00:09:40]} {[%emt 00:03:26]} 40. Rf1+ {[%clk
00:00:35]} {[%emt 00:00:30]} Rf6 {[%clk 00:07:50]} {[%emt 00:02:21]} 41. Rxf6+
{[%clk 00:00:37]} Kxf6 {[%clk 00:08:16]} {[%emt 00:00:32]} 42. Rg3 {[%clk
00:28:08]} {[%emt 00:02:59]} Nb2 {[%clk 00:24:41]} {[%emt 00:14:05]} 43. Rg5
{[%clk 00:24:02]} {[%emt 00:04:35]} Nxc4 {[%clk 00:14:36]} {[%emt 00:10:36]} 44.
Rxc5 {[%clk 00:22:49]} {[%emt 00:01:44]} d3+ {[%clk 00:13:54]} {[%emt
00:01:11]} 45. Ke1 {[%clk 00:19:28]} {[%emt 00:03:50]} Nxa3 {[%clk 00:12:38]}
{[%emt 00:01:47]} 46. Kd2 {[%clk 00:18:48]} {[%emt 00:01:10]} Nc2 {[%clk
00:09:50]} {[%emt 00:03:18]} 47. h5 {[%clk 00:13:09]} {[%emt 00:06:08]} gxh5
{[%clk 00:08:16]} {[%emt 00:02:04]} 1/2-1/2

[Event "NJSK 2018 Jeugd B"]
[Site "Assen, Netherlands"]
[Date "2018.04.30"]
[Round "2.4"]
[White "Van Randtwijk, Mick"]
[Black "Bruil, Rembrandt"]
[Result "0-1"]
[TimeControl "40/90m+30m+30sec/move"]
[WhiteElo "1992"]
[BlackElo "1998"]

1. e4 {[%clk 01:30:57]} {[%emt 00:00:02]} c5 {[%clk 01:30:51]} {[%emt
00:00:10]} 2. Nf3 {[%clk 01:31:21]} {[%emt 00:00:06]} Nc6 {[%clk 01:31:17]}
{[%emt 00:00:04]} 3. d4 {[%clk 01:31:41]} {[%emt 00:00:10]} cxd4 {[%clk
01:31:43]} {[%emt 00:00:04]} 4. Nxd4 {[%clk 01:32:06]} {[%emt 00:00:05]} g6
{[%clk 01:32:09]} {[%emt 00:00:05]} 5. Nc3 {[%clk 01:32:23]} {[%emt 00:00:13]}
Bg7 {[%clk 01:32:34]} {[%emt 00:00:05]} 6. Be3 {[%clk 01:32:45]} {[%emt
00:00:07]} Nf6 {[%clk 01:32:58]} {[%emt 00:00:06]} 7. Bc4 {[%clk 01:32:59]}
{[%emt 00:00:15]} O-O {[%clk 01:33:19]} {[%emt 00:00:09]} 8. Bb3 {[%clk
01:33:17]} {[%emt 00:00:13]} Re8 {[%clk 01:33:44]} {[%emt 00:00:06]} 9. O-O
{[%clk 01:28:59]} {[%emt 00:04:48]} d6 {[%clk 01:33:40]} {[%emt 00:00:34]} 10.
h3 {[%clk 01:28:59]} {[%emt 00:00:30]} Na5 {[%clk 01:33:37]} {[%emt 00:00:34]}
11. f4 {[%clk 01:27:18]} {[%emt 00:02:09]} a6 {[%clk 01:20:54]} {[%emt
00:13:14]} 12. Qf3 {[%clk 01:15:33]} {[%emt 00:12:15]} b5 {[%clk 01:00:10]}
{[%emt 00:21:14]} 13. e5 {[%clk 01:12:46]} {[%emt 00:03:17]} Bb7 {[%clk
00:58:27]} {[%emt 00:02:12]} 14. Qf2 {[%clk 01:13:12]} {[%emt 00:00:04]} Nxb3
{[%clk 00:58:39]} {[%emt 00:00:19]} 15. axb3 {[%clk 01:12:30]} {[%emt
00:01:11]} Nd5 {[%clk 00:52:12]} {[%emt 00:06:57]} 16. Nxd5 {[%clk 01:12:15]}
{[%emt 00:00:46]} Bxd5 {[%clk 00:52:37]} {[%emt 00:00:04]} 17. Rad1 {[%clk
01:03:00]} {[%emt 00:09:45]} e6 {[%clk 00:48:41]} {[%emt 00:04:26]} 18. Nf3
{[%clk 00:55:31]} {[%emt 00:07:59]} Rc8 {[%clk 00:41:32]} {[%emt 00:07:39]} 19.
exd6 {[%clk 00:49:06]} {[%emt 00:06:55]} Qxd6 {[%clk 00:40:03]} {[%emt
00:01:59]} 20. Ne5 {[%clk 00:49:22]} {[%emt 00:00:15]} Qc7 {[%clk 00:33:00]}
{[%emt 00:07:33]} 21. Rc1 {[%clk 00:44:24]} {[%emt 00:05:28]} b4 {[%clk
00:28:43]} {[%emt 00:04:46]} 22. Nd3 {[%clk 00:30:25]} {[%emt 00:14:29]} Qb7
{[%clk 00:20:26]} {[%emt 00:08:47]} 23. Nc5 {[%clk 00:29:51]} {[%emt 00:01:05]}
Qc6 {[%clk 00:20:01]} {[%emt 00:00:54]} 24. c4 {[%clk 00:26:25]} {[%emt
00:03:56]} bxc3 {[%clk 00:17:02]} {[%emt 00:03:29]} 25. bxc3 {[%clk 00:26:47]}
{[%emt 00:00:08]} Bf8 {[%clk 00:17:11]} {[%emt 00:00:21]} 26. b4 {[%clk
00:26:15]} {[%emt 00:01:02]} Bc4 {[%clk 00:17:00]} {[%emt 00:00:40]} 27. Rfd1
{[%clk 00:25:23]} {[%emt 00:01:23]} Red8 {[%clk 00:17:00]} {[%emt 00:00:30]} 28.
Qh4 {[%clk 00:23:29]} {[%emt 00:02:24]} Rxd1+ {[%clk 00:07:11]} {[%emt
00:10:19]} 29. Rxd1 {[%clk 00:23:50]} {[%emt 00:00:09]} Bd5 {[%clk 00:06:27]}
{[%emt 00:01:14]} 30. Qf2 {[%clk 00:19:19]} {[%emt 00:05:01]} Bg7 {[%clk
00:06:23]} {[%emt 00:00:34]} 31. Rc1 {[%clk 00:18:10]} {[%emt 00:01:38]} Qb5
{[%clk 00:05:43]} {[%emt 00:01:11]} 32. Qc2 {[%clk 00:14:58]} {[%emt 00:03:43]}
Qc4 {[%clk 00:05:51]} {[%emt 00:00:21]} 33. Qa4 {[%clk 00:12:47]} {[%emt
00:02:41]} a5 {[%clk 00:02:46]} {[%emt 00:03:35]} 34. Qxa5 {[%clk 00:09:54]}
{[%emt 00:03:23]} Bxc3 {[%clk 00:02:57]} {[%emt 00:00:19]} 35. Qa6 {[%clk
00:09:19]} {[%emt 00:01:05]} Rxc5 {[%clk 00:02:30]} {[%emt 00:00:57]} 36. Qxc4
{[%clk 00:07:18]} {[%emt 00:02:32]} Rxc4 {[%clk 00:02:54]} {[%emt 00:00:05]} 37.
b5 {[%clk 00:07:45]} {[%emt 00:00:03]} Bd4 {[%clk 00:02:53]} {[%emt 00:00:31]}
38. Rxc4 {[%clk 00:06:39]} {[%emt 00:01:36]} Bxe3+ {[%clk 00:03:18]} {[%emt
00:00:05]} 0-1

[Event "NJSK 2018 Jeugd B"]
[Site "Assen, Netherlands"]
[Date "2018.04.30"]
[Round "2.5"]
[White "Noordenbos, Daan"]
[Black "Bruggink, Tycho"]
[Result "1/2-1/2"]
[TimeControl "40/90m+30m+30sec/move"]
[WhiteElo "1763"]
[BlackElo "1899"]

1. e4 {[%clk 01:30:57]} {[%emt 00:00:02]} c5 {[%clk 01:30:57]} {[%emt
00:00:04]} 2. Nf3 {[%clk 01:31:16]} {[%emt 00:00:10]} d6 {[%clk 01:31:21]}
{[%emt 00:00:07]} 3. d4 {[%clk 01:31:37]} {[%emt 00:00:09]} cxd4 {[%clk
01:31:47]} {[%emt 00:00:03]} 4. Nxd4 {[%clk 01:31:59]} {[%emt 00:00:08]} Nf6
{[%clk 01:32:14]} {[%emt 00:00:03]} 5. Nc3 {[%clk 01:32:08]} {[%emt 00:00:20]}
a6 {[%clk 01:32:41]} {[%emt 00:00:04]} 6. Be3 {[%clk 01:31:28]} {[%emt
00:01:07]} e5 {[%clk 01:27:35]} {[%emt 00:05:38]} 7. Nb3 {[%clk 01:30:55]}
{[%emt 00:01:04]} Be6 {[%clk 01:27:59]} {[%emt 00:00:06]} 8. Qd2 {[%clk
01:30:40]} {[%emt 00:00:45]} b5 {[%clk 01:26:36]} {[%emt 00:01:53]} 9. f3
{[%clk 01:27:45]} {[%emt 00:03:24]} Nbd7 {[%clk 01:25:44]} {[%emt 00:01:22]} 10.
g4 {[%clk 01:23:24]} {[%emt 00:04:52]} Nb6 {[%clk 01:21:59]} {[%emt 00:04:15]}
11. Bxb6 {[%clk 01:18:10]} {[%emt 00:05:44]} Qxb6 {[%clk 01:22:25]} {[%emt
00:00:04]} 12. O-O-O {[%clk 01:18:10]} {[%emt 00:00:29]} Rc8 {[%clk 01:15:43]}
{[%emt 00:07:13]} 13. g5 {[%clk 01:16:12]} {[%emt 00:02:27]} Nh5 {[%clk
01:12:08]} {[%emt 00:04:06]} 14. Kb1 {[%clk 01:12:23]} {[%emt 00:04:18]} Be7
{[%clk 01:08:45]} {[%emt 00:03:53]} 15. h4 {[%clk 01:10:26]} {[%emt 00:02:27]}
Nf4 {[%clk 01:03:05]} {[%emt 00:06:10]} 16. Nc1 {[%clk 00:59:06]} {[%emt
00:11:50]} h6 {[%clk 00:49:35]} {[%emt 00:14:01]} 17. gxh6 {[%clk 00:49:22]}
{[%emt 00:10:14]} Rxh6 {[%clk 00:49:58]} {[%emt 00:00:06]} 18. N1e2 {[%clk
00:47:38]} {[%emt 00:02:14]} Nxe2 {[%clk 00:38:56]} {[%emt 00:11:32]} 19. Bxe2
{[%clk 00:46:09]} {[%emt 00:01:58]} Qa5 {[%clk 00:39:25]} {[%emt 00:00:03]} 20.
a3 {[%clk 00:33:33]} {[%emt 00:13:05]} b4 {[%clk 00:26:45]} {[%emt 00:13:11]}
21. Nd5 {[%clk 00:31:32]} {[%emt 00:02:30]} Bxd5 {[%clk 00:27:11]} {[%emt
00:00:05]} 22. exd5 {[%clk 00:29:21]} {[%emt 00:02:41]} Rb8 {[%clk 00:22:29]}
{[%emt 00:05:12]} 23. h5 {[%clk 00:28:22]} {[%emt 00:01:29]} Qa4 {[%clk
00:19:05]} {[%emt 00:03:54]} 24. axb4 {[%clk 00:27:29]} {[%emt 00:01:22]} Rxb4
{[%clk 00:19:18]} {[%emt 00:00:17]} 25. Qc3 {[%clk 00:26:31]} {[%emt 00:01:28]}
Rb8 {[%clk 00:16:12]} {[%emt 00:03:35]} 26. Bd3 {[%clk 00:18:00]} {[%emt
00:09:03]} Bf6 {[%clk 00:10:58]} {[%emt 00:05:43]} 27. Be4 {[%clk 00:15:04]}
{[%emt 00:03:26]} Qd7 {[%clk 00:10:52]} {[%emt 00:00:37]} 28. Qc6 {[%clk
00:13:15]} {[%emt 00:02:18]} Ke7 {[%clk 00:10:52]} {[%emt 00:00:31]} 29. Rd3
{[%clk 00:12:11]} {[%emt 00:01:33]} Rhh8 {[%clk 00:11:17]} {[%emt 00:00:05]} 30.
Rc3 {[%clk 00:12:10]} {[%emt 00:00:31]} Rb7 {[%clk 00:09:42]} {[%emt 00:02:05]}
31. Bf5 {[%clk 00:11:17]} {[%emt 00:01:23]} Qxc6 {[%clk 00:09:44]} {[%emt
00:00:29]} 32. dxc6 {[%clk 00:11:33]} {[%emt 00:00:13]} Rc7 {[%clk 00:10:02]}
{[%emt 00:00:12]} 33. Bd7 {[%clk 00:11:11]} {[%emt 00:00:52]} Bg5 {[%clk
00:10:03]} {[%emt 00:00:29]} 34. Rh3 {[%clk 00:09:13]} {[%emt 00:02:28]} Bf4
{[%clk 00:09:35]} {[%emt 00:00:58]} 35. Rb3 {[%clk 00:09:13]} {[%emt 00:00:30]}
d5 {[%clk 00:07:37]} {[%emt 00:02:29]} 36. Rb6 {[%clk 00:09:16]} {[%emt
00:00:27]} Ra8 {[%clk 00:07:56]} {[%emt 00:00:11]} 37. Rb7 {[%clk 00:09:03]}
{[%emt 00:00:42]} Kd6 {[%clk 00:05:15]} {[%emt 00:03:12]} 38. Rh1 {[%clk
00:08:29]} {[%emt 00:01:03]} Rxb7 {[%clk 00:03:05]} {[%emt 00:02:40]} 39. cxb7
{[%clk 00:08:47]} {[%emt 00:00:12]} Rd8 {[%emt 00:03:34]} 40. Rd1 {[%clk
00:05:49]} Kc7 {[%clk 00:03:42]} {[%emt 00:00:17]} 41. Rxd5 {[%clk 00:05:43]}
{[%emt 00:00:35]} Kxb7 {[%clk 00:03:54]} {[%emt 00:00:18]} 1/2-1/2